Cogmind - Beta 11 X6 @@@ ROGUE MODE // 2021.07.18 @ 14:45:28 Player: AlmondRoll Result: Destroyed by H-55 Commando with Gauss Rifle Performance ------------- Evolutions (3) 1500 Regions Visited (8) 1600 Robots Destroyed (165) 825 Value Destroyed (4500) 4500 Prototype IDs (31) 620 Alien Tech Used (0) 0 Bonus (932) 932 TOTAL SCORE: 9977 Bonus ------- High Alert Combat Kills 562 Follower Combat Kills 70 Aligned with FarCom 300 Cogmind --------- Core Integrity 0/700 Matter 256/300 Energy 23/100 System Corruption 4% Temperature Cool (9) Movement Treading (560) Ox4 Location -7/Factory Parts ------- > --- POWER (1) -------- (None) > --- PROPULSION (6) --- Light Treads > --- UTILITY (3) ------ Huge Storage Unit Weapon Cycler Cloak of Protection > --- WEAPON (3) ------- Gatling Laser > --- INVENTORY (25) --- Improved Deuterium Engine Micro Nuclear Core High-capacity Matter Pod (200) Improved Sensor Array Active Sensor Suite Weapon Cycler Transmission Jammer Heavy Ion Cannon Heavy Ion Cannon Deploy-a-Sentry Deploy-a-Sentry Peak State ------------ > --- POWER ------------ Cooled Ion Engine > --- PROPULSION ------- Light Treads Light Treads Light Treads Light Treads Advanced Treads > --- UTILITY ---------- Improved Heat Sink Huge Storage Unit > --- WEAPON ----------- AWS/Autocannon > --- INVENTORY -------- Reinforced Deuterium Engine Light Treads Light Treads Light Treads Light Treads Light Treads Armored Treads High-capacity Battery High-capacity Matter Pod Active Sensor Suite Weapon Cycler Transmission Jammer Cloak of Protection Dynamic Insulation System EM Pulse Cannon EM Pulse Cannon Gauss Rifle Plasma Cutter Deploy-a-Sentry Deploy-a-Sentry Deploy-a-Sentry [Rating: 53] Favorites ----------- Power Cooled Ion Engine Engine Cooled Ion Engine Propulsion Light Treads Treads Light Treads Leg Aluminum Leg Wheel Compact Wheel Hover Unit Improved Airjet Utility Huge Storage Unit Device Improved Heat Sink Storage Huge Storage Unit Processor Transport Network Coupler Protection Light Armor Plating Weapon Light Cannon Energy Gun Small Laser Energy Cannon Heavy Ion Cannon Ballistic Gun Gauss Rifle Ballistic Cannon Light Cannon Launcher Rocket Launcher Special Weapon Plasma Cutter Build | -11 -10 -10 -9 -9 -9 -8 -8 -7 ------- Run | Scr Mat Min Mat Min Exi Min Mat Fac Slots Evolved 6 | . . . 2 . . . 2 2 Power . | . . . . . . . . . Propulsion 4 | . . . 2 . . . 1 1 Utility 1 | . . . . . . . . 1 Weapon 1 | . . . . . . . 1 . Parts Attached 143 | 4 11 . 13 11 1 . 42 61 Power 8 | . 1 . . 2 1 . 1 3 Engine 8 | . 1 . . 2 1 . 1 3 Core . | . . . . . . . . . Reactor . | . . . . . . . . . Propulsion 62 | 4 5 . 8 2 . . 17 26 Treads 53 | 2 2 . 8 2 . . 17 22 Leg . | . . . . . . . . . Wheel 7 | 2 3 . . . . . . 2 Hover 2 | . . . . . . . . 2 Flight . | . . . . . . . . . Utility 25 | . 3 . 3 . . . 6 13 Device 18 | . . . 1 . . . 5 12 Storage 4 | . 1 . 2 . . . 1 . Processor 2 | . 1 . . . . . . 1 Hackware . | . . . . . . . . . Protection 1 | . 1 . . . . . . . Artifact . | . . . . . . . . . Weapon 48 | . 2 . 2 7 . . 18 19 Energy Gun 4 | . . . . . . . . 4 Energy Cannon 5 | . . . . . . . 2 3 Ballistic Gun 18 | . . . . . . . 10 8 Ballistic Cannon 14 | . 2 . 2 4 . . 2 4 Launcher 6 | . . . . 3 . . 3 . Special Weapon 1 | . . . . . . . 1 . Impact Weapon . | . . . . . . . . . Slashing Weapon . | . . . . . . . . . Piercing Weapon . | . . . . . . . . . Special Melee Weapon . | . . . . . . . . . Unidentified Prototypes 5 | . . . . . 1 . . 4 Corrupted Parts 1 | . . . . . . . 1 . System Corruption 5 | . . . . . . . 5 . Parts Lost 44 | . . . . 3 . . 13 28 Power 4 | . . . . 1 . . 1 2 Propulsion 24 | . . . . 2 . . 5 17 Utility 2 | . . . . . . . . 2 Weapon 14 | . . . . . . . 7 7 Highest Loss Streak 16 | . . . . 3 . . 8 16 Average Slot Usage (%) 97 | . 98 100 99 99 100 100 98 93 Engine 9 | . 14 14 11 11 11 11 9 6 Treads 39 | . 25 . 40 43 44 44 44 39 Wheel 1 | . 2 28 2 . . . . 1 Device 9 | . . . 8 11 11 11 9 13 Storage 9 | . 14 14 11 11 11 11 9 7 Processor 1 | . 10 . . . . . . . Protection 1 | . 1 14 2 . . . . . Ballistic Gun 9 | . . . . . . . 15 19 Ballistic Cannon 13 | . 27 28 22 21 22 22 9 1 Naked Turns . | . . . . . . . . . Heaviest Build 149 | 12 94 94 94 91 94 94 149 140 Greatest Support 120 | 26 40 32 95 95 89 89 103 120 Greatest Overweight (x) 31 | . 5 5 1 . 1 1 1 31 Average Overweight (x) . | . . 2 . . . 1 . . Largest Inventory Capacity 25 | 8 25 25 25 25 25 25 25 25 Average Capacity 23 | 8 9 25 24 25 25 25 25 25 Most Carried 25 | 6 9 9 25 25 25 25 25 25 Average Carried 21 | 5 7 8 17 23 24 25 24 24 Final Capacity 25 | 8 25 25 25 25 25 25 25 25 Final Carried 25 | 6 8 9 25 25 25 25 25 13 Class Distribution -------------------- 51% | Mutant 43% | Scavenger-Skirmisher 3% | Scavenger-Gunner Dominant Class ---------------- Mutant | -10/Materials Mutant | -10/Mines Mutant | -9/Materials Mutant | -9/Mines Mutant | -9/Exiles Mutant | -8/Mines Scavenger-Skirmisher | -8/Materials Scavenger-Skirmisher | -7/Factory Resources | -11 -10 -10 -9 -9 -9 -8 -8 -7 ----------- Run | Scr Mat Min Mat Min Exi Min Mat Fac Matter Collected 5017 | 246 223 41 823 586 . . 1360 1738 Remotely . | . . . . . . . . . Salvage Created 6457 | 100 239 . 1150 86 . . 1789 3093 Parts 347 | 2 20 . 72 . . . 99 154 Haulers Intercepted 15 | . 2 . 2 . . . 6 5 Recyclers Shooed 10 | . . . . . . . 5 5 Parts Field Recycled . | . . . . . . . . . Retrieved Matter . | . . . . . . . . . Parts Self-Destructed . | . . . . . . . . . Prevented . | . . . . . . . . . Kills | -11 -10 -10 -9 -9 -9 -8 -8 -7 ------- Run | Scr Mat Min Mat Min Exi Min Mat Fac Combat Hostiles Destroyed 111 | . 3 . 20 21 . . 28 39 Melee 1 | . . . . 1 . . . . Guns 36 | . . . . . . . 8 28 Cannons 51 | . 3 . 20 3 . . 15 10 AOE 23 | . . . . 17 . . 5 1 Classes Destroyed 19 | 1 4 . 5 2 . . 2 5 Worker 10 | . . . 2 . . . 4 4 Builder 4 | . 1 . . . . . . 3 Tunneler 2 | . . . . . . . . 2 Hauler 15 | . 2 . 2 . . . 6 5 Recycler 26 | 1 1 . 5 1 . . 7 11 Mechanic 1 | . . . . . . . . 1 Operator 6 | . . . 2 . . . 2 2 Watcher 9 | . 1 . 3 . . . 2 3 Swarmer 22 | . . . 3 . . . 7 12 Grunt 42 | . 3 . 11 . . . 13 15 Brawler 1 | . . . . . . . . 1 Duelist 1 | . . . 1 . . . . . Sentry 13 | . . . 5 . . . 4 4 Demolisher 3 | . . . . 2 . . . 1 Specialist 1 | . . . . . . . . 1 Hunter 3 | . . . . . . . 3 . Programmer 5 | . . . . . . . . 5 Heavy 1 | . . . . . . . 1 . Assembled 19 | . . . . 19 . . . . Best Kill Streak 14 | 1 3 . 7 14 . . 10 14 Combat Bots Only 14 | . 2 . 5 14 . . 9 10 Max Kills in Single Turn 6 | 1 1 . 1 6 . . 2 3 Gunslinging 1 | . . . . . . . . 1 Exploded 6 | . . . . 6 . . 2 1 Melee 1 | . . . . 1 . . . . Uniques/NPCs Destroyed . | . . . . . . . . . Combat | -11 -10 -10 -9 -9 -9 -8 -8 -7 -------- Run | Scr Mat Min Mat Min Exi Min Mat Fac Damage Taken 9256 | . 169 6 427 996 . . 1837 5821 Core 1001 | . 30 . 49 68 . . 151 703 Absorbed by Shields . | . . . . . . . . . Core Remaining (%) 82 | 100 . 88 . . . 70 72 . Volleys Fired 326 | 6 23 . 61 29 . . 98 109 Largest 3 | 2 2 . 2 2 . . 3 3 Hottest 130 | 60 70 . 70 70 . . 121 130 Shots Fired 848 | 12 46 . 122 52 . . 277 339 Gun 419 | 12 . . . . . . 119 288 Cannon 405 | . 46 . 122 40 . . 146 51 Launcher 18 | . . . . 12 . . 6 . Special 6 | . . . . . . . 6 . Kinetic 787 | 6 46 . 122 40 . . 256 317 Thermal 34 | 6 . . . . . . 6 22 Explosive 18 | . . . . 12 . . 6 . Electromagnetic 9 | . . . . . . . 9 . Robot Hit Streak 26 | 3 6 . 10 6 . . 15 26 Robot Miss Streak 6 | 4 2 . 4 4 . . 4 6 Penetration Max 1 | . . . . . . . . 1 Secondary Targets 6 | . . . . . . . . 6 Max Gunslinging Chain 1 | . . . . . . . . 1 Autonomous 24 | . . . . . . . 4 20 Shots Hit Robots 494 | 5 29 . 69 31 . . 154 206 Core Hits 263 | 3 11 . 37 40 . . 75 97 Critical Kills 2 | . . . . . . . 1 1 Critical Parts Destroyed 3 | . . . . . . . . 3 Critical Strikes 15 | . 2 . 3 1 . . 4 5 Destroy 5 | . . . . . . . 1 4 Blast 10 | . 2 . 3 1 . . 3 1 Melee Attacks . | . . . . . . . . . Impact . | . . . . . . . . . Slashing . | . . . . . . . . . Piercing . | . . . . . . . . . Sneak Attacks . | . . . . . . . . . Combat Hostiles . | . . . . . . . . . Follow-up Attacks . | . . . . . . . . . Damage Inflicted 13825 | 49 452 12 1309 1700 . 39 3582 6682 Guns 5145 | 49 . . . . . . 947 4149 Cannons 6224 | . 444 . 1230 423 . . 1972 2155 Explosions 2072 | . . . . 1240 . . 561 271 Melee . | . . . . . . . . . Ramming 315 | . 8 12 79 37 . 39 33 107 Kinetic 10700 | 26 444 . 1230 423 . . 2704 5873 Thermal 826 | 23 . . . . . . 101 702 Explosive 1769 | . . . . 1240 . . 529 . Electromagnetic 215 | . . . . . . . 215 . Impact . | . . . . . . . . . Slashing . | . . . . . . . . . Piercing . | . . . . . . . . . Highest Corruption 5 | . 1 1 . . . . 5 4 Average Corruption 1 | . 1 1 . . . . 5 1 Corruption Purged 1 | . . . . . . . . 1 Effects 12 | . 6 . . . . . . 6 Message Errors 7 | . 4 . . . . . . 3 Heat Flow Errors 1 | . . . . . . . . 1 Energy Discharges 1 | . . . . . . . . 1 Data Loss (minor) 3 | . 2 . . . . . . 1 Overload Shots . | . . . . . . . . . Overflow Damage 488 | . . . 26 63 . . 17 382 Projectiles 377 | . . . 9 . . . 17 351 Explosions 94 | . . . . 63 . . . 31 Melee 17 | . . . 17 . . . . . Knockbacks 48 | . 2 . 10 8 . 2 14 12 Impact 6 | . . . 3 . . 2 . 1 Kinetic 40 | . 2 . 6 8 . . 13 11 Secondary 2 | . . . 1 . . . 1 . Self-Inflicted Damage 513 | . . 6 . 210 . . 46 251 Shots 9 | . . . . 5 . . 1 3 Rammed 22 | . 4 1 3 . . 4 3 7 Targets Rammed 28 | . 4 1 5 1 . 4 5 8 Kicked . | . . . . . . . . . Crushed 6 | . . . 2 1 . . 2 1 Highest Temperature 360 | 40 79 . 109 . . . 108 360 Average Temperature 52 | 24 32 . 35 . . . 45 77 Received Heat Transfer 2171 | . 96 . 162 20 . . 315 1578 Effects 1 | . . . . . . . . 1 Shutdowns 1 | . . . . . . . . 1 Siege Activations . | . . . . . . . . . Robots Corrupted . | . . . . . . . . . Combat Hostiles . | . . . . . . . . . Parts Fried 1 | . . . . . . . 1 . Impact Corruptions 1 | . . . 1 . . . . . Robots Melted . | . . . . . . . . . Combat Hostiles . | . . . . . . . . . Parts Melted . | . . . . . . . . . Heat Transferred 1064 | 50 . . . . . . 272 742 Parts Sabotaged . | . . . . . . . . . Parts Stolen . | . . . . . . . . . Parts Stripped . | . . . . . . . . . Power Chain Reactions 1 | . . . . . . . 1 . Missiles Intercepted . | . . . . . . . . . Alert | -11 -10 -10 -9 -9 -9 -8 -8 -7 ------- Run | Scr Mat Min Mat Min Exi Min Mat Fac Peak Influence 1206 | 5 147 62 379 93 . . 558 1206 Initial 53 | . 3 16 24 53 . . . 41 Average 184 | 4 26 31 242 38 . . 305 207 Maximum Alert Level 4 | . . . 1 . . . 2 4 Low Security (%) 66 | 100 100 100 28 100 . 100 36 75 Level 1 21 | . . . 71 . . . 22 10 Level 2 9 | . . . . . . . 40 5 Level 3 2 | . . . . . . . . 7 Level 4 . | . . . . . . . . 1 Level 5 . | . . . . . . . . . High Security . | . . . . . . . . . Max Security . | . . . . . . . . . Squads Dispatched 21 | . . 1 4 . . . 5 11 Investigation 5 | . . . 2 . . . 2 1 Extermination 5 | . . . . . . . . 5 Reinforcement 8 | . . . 2 . . . 3 3 Assault 3 | . . 1 . . . . . 2 Garrison . | . . . . . . . . . Intercept . | . . . . . . . . . Construction Impeded . | . . . . . . . . . Haulers Reinforced 3 | . . . . . . . 1 2 Active Scanning Responses . | . . . . . . . . . Cargo Convoy Interrupts 1 | . . . . . . . . 1 Stealth | -11 -10 -10 -9 -9 -9 -8 -8 -7 --------- Run | Scr Mat Min Mat Min Exi Min Mat Fac Distress Signals 3 | . 1 . 2 . . . . . Communications Jammed 1 | . . . . . . . . 1 Distress Signals 1 | . . . . . . . . 1 Times Spotted 189 | . 10 5 25 24 . . 37 88 Peak Tracking Total 24 | . 4 4 6 9 . . 6 24 Tactical Retreats 12 | . 3 1 1 2 . . 1 4 Traps | -11 -10 -10 -9 -9 -9 -8 -8 -7 ------- Run | Scr Mat Min Mat Min Exi Min Mat Fac Traps Triggered 6 | . 1 . . . . . . 5 Indirectly . | . . . . . . . . . Trap Hack Attempts . | . . . . . . . . . Triggered . | . . . . . . . . . Disarmed . | . . . . . . . . . Reprogrammed . | . . . . . . . . . Reused . | . . . . . . . . . Traps Extracted . | . . . . . . . . . Installed . | . . . . . . . . . Triggered . | . . . . . . . . . Machines | -11 -10 -10 -9 -9 -9 -8 -8 -7 ---------- Run | Scr Mat Min Mat Min Exi Min Mat Fac Machines Disabled 19 | . 1 . . . . . 3 15 Max in Single Turn 5 | . 1 . . . . . 1 5 Garrison Access 1 | . . . . . . . 1 . Machines Sabotaged . | . . . . . . . . . Garrisons Compromised 1 | . . . . . . . . 1 Overloaded Fab Kills . | . . . . . . . . . Fab Network Shutdowns . | . . . . . . . . . Hacking | -11 -10 -10 -9 -9 -9 -8 -8 -7 --------- Run | Scr Mat Min Mat Min Exi Min Mat Fac Machines Accessed 26 | . 4 . 5 . 2 . 8 7 Terminals 16 | . 4 . 3 . . . 6 3 Fabricators 1 | . . . . . . . . 1 Repair Stations 4 | . . . 1 . . . 1 2 Recycling Units 1 | . . . 1 . . . . . Scanalyzers 1 | . . . . . . . . 1 Garrison Access 1 | . . . . . . . 1 . Total Hacks 90 | . 15 . 31 . 2 . 25 17 Successful 52 | . 7 . 18 . 2 . 15 10 Failed 36 | . 7 . 12 . . . 10 7 Catastrophic 3 | . . . . . . . 1 2 Database Lockouts 2 | . 1 . 1 . . . . . Manual 51 | . 15 . 17 . 1 . 11 7 Terminals 59 | . 15 . 16 . . . 21 7 Fabricators 2 | . . . . . . . . 2 Repair Stations 20 | . . . 13 . . . 2 5 Recycling Units 2 | . . . 2 . . . . . Scanalyzers 3 | . . . . . . . . 3 Garrison Access 2 | . . . . . . . 2 . Terminal Hacks 19 | . 4 . 2 . 2 . 9 2 Record 2 | . . . . . 1 . 1 . Robot Analysis 5 | . 2 . 1 . . . 2 . Prototype ID Bank 1 | . . . . . . . 1 . Branch Access Points 1 | . . . . . . . . 1 Terminal Index 1 | . . . . . . . 1 . Unreport Threat 4 | . 1 . 1 . . . 2 . Locate Traps 3 | . 1 . . . . . 1 1 Hauler Manifests 1 | . . . . . . . 1 . EX-Prototype ID Bank 1 | . . . . . 1 . . . Fabricator Hacks . | . . . . . . . . . Repair Station Hacks 14 | . . . 11 . . . 2 1 Scan Component 8 | . . . 6 . . . 1 1 Repair 6 | . . . 5 . . . 1 . Recycling Unit Hacks 1 | . . . 1 . . . . . Retrieve Components 1 | . . . 1 . . . . . Scanalyzer 3 | . . . . . . . . 3 Insert Component 2 | . . . . . . . . 2 Analyze 1 | . . . . . . . . 1 Garrison Access Hacks 1 | . . . . . . . 1 . Seal Access 1 | . . . . . . . 1 . Unauthorized Hacks 14 | . 3 . 4 . . . 3 4 Terminals 11 | . 3 . 3 . . . 3 2 Botnet 8 | . 2 . 2 . . . 2 2 Operators 3 | . 1 . 1 . . . 1 . Fabricators 2 | . . . . . . . . 2 Report 1 | . . . . . . . . 1 Haulers 1 | . . . . . . . . 1 Repair Stations . | . . . . . . . . . Recycling Units 1 | . . . 1 . . . . . Reject 1 | . . . 1 . . . . . Scanalyzers . | . . . . . . . . . Garrison Access . | . . . . . . . . . Data Cores Recovered . | . . . . . . . . . Used . | . . . . . . . . . Hacking Detections 23 | . 4 . 5 . . . 7 7 Full Trace Events 12 | . 3 . 3 . . . 5 1 Feedback Events . | . . . . . . . . . Feedback Blocked . | . . . . . . . . . Robot Schematics Acquired . | . . . . . . . . . Robots Built . | . . . . . . . . . Matter . | . . . . . . . . . Time . | . . . . . . . . . Total Robot Build Rating . | . . . . . . . . . Part Schematics Acquired 1 | . . . . . . . . 1 Parts Built . | . . . . . . . . . Matter . | . . . . . . . . . Time . | . . . . . . . . . Total Part Build Rating . | . . . . . . . . . Parts Repaired 6 | . . . 5 . . . 1 . Time 156 | . . . 130 . . . 26 . Parts Recycled . | . . . . . . . . . Recycled Matter . | . . . . . . . . . Retrieved Matter . | . . . . . . . . . Retrieved Components 9 | . . . 9 . . . . . Parts Scanalyzed 1 | . . . . . . . . 1 Part Schematics Acquired 1 | . . . . . . . . 1 Parts Damaged 1 | . . . . . . . . 1 Bothacking | -11 -10 -10 -9 -9 -9 -8 -8 -7 ------------ Run | Scr Mat Min Mat Min Exi Min Mat Fac Used RIF Installer . | . . . . . . . . . Robots Hacked . | . . . . . . . . . Non-combat . | . . . . . . . . . Combat . | . . . . . . . . . Robot Hacks Applied . | . . . . . . . . . Relay Couplers Released 3 | . . . . . . . . 3 Programmers 3 | . . . . . . . . 3 Robots Rewired . | . . . . . . . . . Allies Hacked . | . . . . . . . . . Hacks Repelled . | . . . . . . . . . Allies | -11 -10 -10 -9 -9 -9 -8 -8 -7 -------- Run | Scr Mat Min Mat Min Exi Min Mat Fac Total Allies 1 | . . 1 . . . . . . Largest Group 1 | . . 1 . . . . . . Highest-Rated Group 31 | . . 31 . . . . . . Highest-Rated Ally 31 | . . 31 . . . . . . Total Orders . | . . . . . . . . . Ally Attacks 7 | . . 6 . . . . . 1 Total Damage 165 | . . 80 . . . . . 85 Kills 2 | . . 1 . . . . . 1 Allies Corrupted . | . . . . . . . . . Allies Melted . | . . . . . . . . . Turrets Deployed 1 | . . . . . . . . 1 Intel | -11 -10 -10 -9 -9 -9 -8 -8 -7 ------- Run | Scr Mat Min Mat Min Exi Min Mat Fac Robot Analysis Total 5 | . 2 . 1 . . . 2 . Derelict Logs Recovered 3 | . . . . 3 . . . . Drone Launches . | . . . . . . . . . Drone Recoveries . | . . . . . . . . . Exploration | -11 -10 -10 -9 -9 -9 -8 -8 -7 ------------- Run | Scr Mat Min Mat Min Exi Min Mat Fac Turns Passed 7417 | 33 719 166 1266 763 495 167 1292 2516 Spaces Moved 3364 | 9 375 122 492 407 230 61 512 1156 Core 2 | . . . . . . . . 2 Treads 2986 | . 326 . 492 407 230 61 512 958 Legs . | . . . . . . . . . Wheels 375 | 9 49 122 . . . . . 195 Hover 1 | . . . . . . . . 1 Flight . | . . . . . . . . . Fastest Speed 90 | 90 90 130 160 160 160 260 157 145 Average Speed 168 | 90 157 135 177 160 211 260 160 164 Slowest Speed 1600 | 90 360 175 260 160 260 260 257 1600 Overloaded Moves . | . . . . . . . . . Propulsion Burnouts . | . . . . . . . . . Robots Hopped . | . . . . . . . . . Cave-ins Triggered . | . . . . . . . . . Exploration Rate (%) 41 | 3 60 33 41 72 59 21 49 33 Regions Visited 8 Branch Regions 4 Pre-discovered Areas 2 | . . . . 1 1 . . . Known Exits Taken 1 | . . . . . . 1 . . Unknown Exits Taken 7 | 1 1 1 1 1 1 . 1 . Scrap Searched 1 | . . 1 . . . . . . Spaces Dug . | . . . . . . . . . Terrain Destroyed 200 | . . . . 56 . . 50 94 Melee . | . . . . . . . . . Projectile 15 | . . . . 1 . . 4 10 AOE 185 | . . . . 55 . . 46 84 Terrain Rammed . | . . . . . . . . . Walls Destroyed . | . . . . . . . . . Machines Disabled . | . . . . . . . . . Actions | -11 -10 -10 -9 -9 -9 -8 -8 -7 --------- Run | Scr Mat Min Mat Min Exi Min Mat Fac Total 4438 | 22 455 123 763 465 244 64 774 1528 Wait 389 | . 25 . 157 6 . . 64 137 Move 3356 | 8 374 121 491 406 229 60 511 1156 Hop . | . . . . . . . . . Pick Up 99 | 2 8 1 28 7 6 . 27 20 Fast Attach 37 | . 2 . 2 . . . 6 27 Attach 48 | 2 . . 5 3 . . 17 21 Detach 9 | . . . 1 . . . 2 6 Swap 58 | 2 9 . 6 8 1 . 19 13 Drop 88 | 2 10 . 7 5 8 . 25 31 Fire 326 | 6 23 . 61 29 . . 98 109 Melee . | . . . . . . . . . Ram 1 | . . 1 . . . . . . Kick . | . . . . . . . . . Crush 27 | . 4 . 5 1 . 4 5 8 Escape Stasis . | . . . . . . . . . Rewire . | . . . . . . . . . Trap . | . . . . . . . . . Miscellaneous . | . . . . . . . . . Route ------- -11/Scrapyard -10/Materials (discovered 2 exits: *Mat / [*Min]) -10/Mines -9/Materials -9/Mines (discovered 3 exits: Mat / *Exi / [*Zio]) -9/Exiles -8/Mines -8/Materials (discovered 2 exits: *Fac / [*Sto]) -7/Factory (discovered 3 exits: [*Fac] / *Low x2) History --------- Turn | Location | Event 13 | -11/Scrapyard | Discovered new exit (range 3) 34 | -11/Scrapyard | Entered Materials 312 | -10/Materials | Build established: Mutant 415 | -10/Materials | Central database locked down 438 | -10/Materials | Discovered new exit (range 3) 457 | -10/Materials | Discovered new exit (range 16) 753 | -10/Materials | Entered Mines 758 | -10/Mines | Met a Derelict testing a Signal Generator 787 | -10/Mines | Met a Derelict bent on vengeance 890 | -10/Mines | Discovered new exit (range 7) 902 | -10/Mines | Received a Rocket Launcher from a helpful Derelict 919 | -10/Mines | Entered Materials 919 | -9/Materials | Evolved 2 slots: Propulsion x2 1792 | -9/Materials | Repaired Lgt. Cannon 1819 | -9/Materials | Repaired Lgt. Cannon 1846 | -9/Materials | Repaired Lgt. Treads 1879 | -9/Materials | Repaired Lgt. Treads 1906 | -9/Materials | Repaired Lgt. Treads 2107 | -9/Materials | Discovered new exit (range 9) 2171 | -9/Materials | Central database locked down 2185 | -9/Materials | Entered Mines 2262 | -9/Mines | Identified exit to Materials 2283 | -9/Mines | Learned location of Zion (-7) 2298 | -9/Mines | Assembled infested the area 2374 | -9/Mines | Destroyed 14 combat bots 2380 | -9/Mines | Lost 3 parts (1p2n) 2498 | -9/Mines | A Derelict revealed a hidden shortcut to a safe place 2498 | -9/Mines | Learned Materials stockpile data 2688 | -9/Mines | Joined a pair of Derelicts in attacking an 0b10 outpost 2788 | -9/Mines | Deemed a non-threat by the Exiles lab entrance 2790 | -9/Mines | Discovered new exit (range 5) 2948 | -9/Mines | Entered Exiles 2987 | -9/Exiles | Met 8R-AWN 3016 | -9/Exiles | Met EX-HEX 3057 | -9/Exiles | Met EX-BIN 3076 | -9/Exiles | Aligned with FarCom system 3078 | -9/Exiles | Given EX-Vault access code 3115 | -9/Exiles | Opened EX-Vault 3129 | -9/Exiles | Found Cloak of Protection 3137 | -9/Exiles | Found AWS/Autocannon 3142 | -9/Exiles | Found Deploy-a-Sentry 3146 | -9/Exiles | Found Deploy-a-Sentry 3150 | -9/Exiles | Found Deploy-a-Sentry 3200 | -9/Exiles | Warned to stay clear of 0b10 Research branches 3278 | -9/Exiles | Met EX-DEC 3423 | -9/Exiles | Discovered new exit (range 10) 3443 | -9/Exiles | Stole three prototypes: Cloak of Protection, AWS/Autocannon, Deploy-a-Sentry 3443 | -9/Exiles | Entered Mines 3589 | -8/Mines | Discovered exit to Materials (range 9) 3610 | -8/Mines | Entered Materials 3610 | -8/Materials | Evolved 2 slots: Propulsion x1, Weapon x1 3891 | -8/Materials | Repaired Lgt. Cannon 4209 | -8/Materials | Discovered new exit (range 15) 4250 | -8/Materials | Destroyed 9 combat bots 4269 | -8/Materials | Lost 8 parts (1p3n4w) 4279 | -8/Materials | Found Prototype Device 4709 | -8/Materials | Build established: Scavenger-Skirmisher 4755 | -8/Materials | Discovered new exit (range 15) 4902 | -8/Materials | Entered Factory 4902 | -7/Factory | Evolved 2 slots: Propulsion x1, Utility x1 4904 | -7/Factory | FarCom data flow suspended 5521 | -7/Factory | Identified Active Sensor Suite 6268 | -7/Factory | Discovered new exit (range 9) 6502 | -7/Factory | Identified exit to Lower Caves 7253 | -7/Factory | Destroyed 10 combat bots 7302 | -7/Factory | First assault squad dispatched 7310 | -7/Factory | Core integrity fell below 50% 7338 | -7/Factory | Lost 16 parts (1p8n2u5w) 7380 | -7/Factory | Cargo convoy interrupted 7401 | -7/Factory | Core integrity fell below 20% 7418 | -7/Factory | DAS Turret deployed 7418 | -7/Factory | Destroyed by H-55 Commando with Gauss Rifle Last Messages --------------- 07411_ Destroyed Carbon-fiber Leg. 07411_ Destroyed Axe. 07411_ L-41 Fighter knocked back. 07412_ U-05 Engineer builds a Wall. 07412_ Penetrated by Slug. 07413_ U-05 Engineer builds a Door. 07413_ K-01 Serf collects debris. 07413_ Slug penetrates Wall. 07413_ S-27 Virus destroyed. 07414_ Acquired 14 matter. 07414_ Discarded Imp. Signal Interpreter. 07414_ AWS/Autocannon destroyed. 07415_ Penetrated by Slug. 07416_ Slug penetrates Wall. 07416_ Dropped Deploy-a-Sentry. 07417_ M-28 Smith fits Backup Laser III on L-41 Fighter. 07418_ DAS Turret deployed. 07418_ P-60 Hacker destroyed. 07418_ K-01 Serf collects debris. 07418_ Slug penetrates Construction Platform. Map ----- +----------------------------------------------------+ | ?????????????????????????????????????????????????? | | ?????????????????????????????????????????????????? | | ?????????????????????????????????????????????????? | | ?????????????????????????????????????????????????? | | ?????????????????????????????????????????????????? | | ?????????????????????????????????????????????????? | | ?????????????????????????????????????????????????? | | ?????????????????????????????????????????????????? | | ?????????????????????????????????????????????????? | | ?????????????????????????????????????????????????? | | ?????????????????????????????????????????????????? | | ?????????????????????????????????????????????????? | | ????????????????????###########??????????????????? | | ???????????########## #??????????????????? | | ???????????# ######?????????????? | | ???????????# ?????????????? | | ???????????# ] ????????????? | | ???????????# ][> ?????????????? | | ?##????????# ][!!!!] ???????????????? | | !#????????# gi=[a%!% % ?????????????????? | | #????????# x=g%g%%!] #??????????????????? | | #????????# m##=ggga=% ????????????????????? | | #????????# ^ *b!gg*ss#######????????????????? | | #????????# !![#xx!g%%=!* #????????????????? | | #????????# !%=![mlgt[!! #????????????????? | | #????????# =mh#mh=[ @""""" #????????????????? | | #????????# !![%ku!u*!*="""" #????????????????? | | #????????# %=!#%h!=""""""" #????????????????? | | #????????# k%*!#k!=%""""""" #????????????????? | | #????????# %"!#!%!*! #????????????????? | | #????????#!= #=%| """"""" #????????????????? | | ############%* # ! """"""" #????????????????? | | =%%!! # """"""" #????????????????? | | **[ #! """"""??#????????????????? | | "% %% # ?????????????????????? | | " ##########????????????????????? | | #?????????????????????????????? | | #?????????????????????????????? | | #?????????????????????????????? | | ####################?????????????????????????????? | | ?????????????????????????????????????????????????? | | ?????????????????????????????????????????????????? | | ?????????????????????????????????????????????????? | | ?????????????????????????????????????????????????? | | ?????????????????????????????????????????????????? | | ?????????????????????????????????????????????????? | | ?????????????????????????????????????????????????? | | ?????????????????????????????????????????????????? | | ?????????????????????????????????????????????????? | | ?????????????????????????????????????????????????? | +----------------------------------------------------+ Best States ------------- Heat Dissipation 61 Energy Generation 16 Energy Capacity 290 Matter Stores 300 Matter Capacity 300 Sight Range 16 Robot Scan Range 15 Terrain Scan Density 10 Jamming Range 8 Additional Mass Support 6 Armor Coverage 150 Evasion (%) 42 Recoil Reduction 6 Item Schematics ----------------- Arm. Treads | -7/Factory | Scanalyzed Robot Schematics ------------------ None Fabricated ------------ Nothing Alien Tech Used ----------------- None Achievements -------------- None Challenges ------------ None Game ------ Seed AdvancedNetworkAutohacker Manual? 0 Play Time 01:33:10 Cumulative 279.8 hours Start 2021.07.18 @ 09:40:07 End 2021.07.18 @ 14:45:28 Sessions 1 Manual Loads 0 Difficulty Rogue Special Mode None Game No. 151 Rogue 151 Adventurer 0 Explorer 0 Win Type - Total 8 Types 6/0/1/1/0/0/0/0/0 Lore% 77 Gallery% 82 Achievement% 62 Wizard Run 0 Options --------- ASCII 0 Keyboard 0 Movement Numpad Keybinds 0 Fullscreen 1 Font 18/SmallcapsGlow Map View 76x50 Tactical HUD 1 Map Filters NONE Filters NONE Steam 1 RUN: 718a05c2-48ec-4588-8774-33f6204664f2